bitfinex/quotes_BTCUSD_20260215
["timestamp","ask_amount","ask_price","bid_price","bid_amount"]
[1771184311954,0.31949188,68327.0,68311.0,0.32812]
[1771184312157,0.05440475,68325.0,68311.0,0.32812]
[1771184312804,0.05440475,68325.0,68311.0,0.64096156]
[1771184313010,0.05440475,68325.0,68311.0,0.32812]
[1771184313253,0.05440475,68325.0,68311.0,0.64096156]
[1771184313450,0.0004,68328.0,68312.0,0.31284156]
[1771184314569,0.05480475,68328.0,68312.0,0.31284156]
[1771184315581,0.0004,68328.0,68318.0,0.57917644]
[1771184315753,0.0004,68332.0,68319.0,0.31284156]
[1771184315954,0.0004,68332.0,68321.0,0.31284156]
[1771184316320,0.0004,68328.0,68321.0,0.31284156]
[1771184317286,8.928e-05,68328.0,68320.0,0.32852]
[1771184317520,8.928e-05,68328.0,68321.0,0.31284156]
[1771184319568,8.928e-05,68328.0,68320.0,0.32852]
[1771184320392,8.928e-05,68328.0,68320.0,0.64136156]
[1771184320865,8.928e-05,68328.0,68320.0,0.32852]
[1771184321067,8.928e-05,68328.0,68321.0,0.31284156]
[1771184322387,8.928e-05,68328.0,68320.0,0.32852]
[1771184323320,0.05449403,68328.0,68320.0,0.32852]
[1771184324224,8.928e-05,68328.0,68320.0,0.32852]
[1771184324975,0.0004,68347.0,68321.0,0.29295736]
[1771184325346,0.00012908,68342.0,68332.0,0.51467356]
[1771184325558,0.2978283,68341.0,68324.0,0.09376]
[1771184325762,0.02720237,68338.0,68328.0,0.33108]
[1771184326567,0.02720237,68336.0,68328.0,0.33108]
[1771184326766,0.02720237,68335.0,68328.0,0.33108]
[1771184327737,0.00012908,68342.0,68320.0,0.33116]
[1771184327738,0.02720237,68333.0,68320.0,0.33116]
[1771184328902,0.02720237,68341.0,68321.0,0.29295736]
[1771184329120,0.00012908,68342.0,68321.0,0.29295736]
[1771184329749,0.00012908,68342.0,68329.0,0.29295736]
[1771184331389,0.00012908,68342.0,68330.0,0.29295736]
[1771184331931,0.02720237,68341.0,68329.0,0.33116]
[1771184332145,0.00012908,68342.0,68329.0,0.33116]
[1771184332146,0.2978283,68338.0,68329.0,0.33116]
[1771184332351,0.2978283,68337.0,68321.0,0.33112]
[1771184332547,0.02720237,68336.0,68321.0,0.0002]
[1771184334457,0.02720237,68335.0,68321.0,0.0002]
[1771184335943,0.00052908,68342.0,68321.0,0.0002]
[1771184335944,0.2978283,68334.0,68321.0,0.0002]
[1771184336120,0.02720237,68332.0,68321.0,0.0002]
[1771184336332,0.02720237,68331.0,68321.0,0.0002]
[1771184337179,0.02720237,68331.0,68321.0,3.868e-05]
[1771184337732,0.02720237,68330.0,68321.0,3.868e-05]
[1771184340420,0.02720237,68341.0,68322.0,0.29295736]
[1771184340769,0.02720237,68339.0,68321.0,3.868e-05]
[1771184340993,0.02720237,68338.0,68321.0,3.868e-05]
[1771184341400,0.00052908,68342.0,68322.0,0.29295736]
[1771184341401,0.02720237,68341.0,68322.0,0.29295736]
[1771184341870,0.02720237,68341.0,68322.0,0.33024]
[1771184342047,0.02720237,68341.0,68323.0,0.29295736]
[1771184348705,0.0002411,68345.0,68331.0,0.29295736]
[1771184348909,0.0002411,68345.0,68333.0,0.29295736]
[1771184350201,0.0004,68347.0,68333.0,0.29295736]
[1771184350420,0.0004,68347.0,68333.0,0.29279605]
[1771184350628,0.0004,68347.0,68333.0,0.29379605]
[1771184351187,0.0004,68347.0,68333.0,0.29279605]
[1771184352420,0.0004,68354.0,68338.0,0.29295736]
[1771184354294,0.0002411,68358.0,68340.0,0.57902771]
[1771184354440,0.0002411,68358.0,68342.0,0.31708777]
[1771184356046,0.0002411,68358.0,68341.0,0.33192]
[1771184356047,0.02734737,68355.0,68341.0,0.33192]
[1771184356457,0.02734737,68353.0,68341.0,0.33192]
[1771184360161,0.02734737,68353.0,68332.0,0.31708777]
[1771184362727,0.02734737,68353.0,68340.0,0.57902771]
[1771184363263,0.02774737,68353.0,68340.0,0.57902771]
[1771184363559,0.02774737,68353.0,68339.0,0.33228]
[1771184364519,0.28981362,68353.0,68331.0,0.31721685]
[1771184364741,0.02734737,68352.0,68331.0,0.31721685]
[1771184365417,0.0004,68353.0,68331.0,0.00012908]
[1771184365418,0.02734737,68348.0,68331.0,0.00012908]
[1771184365624,0.02734737,68344.0,68331.0,0.00012908]
[1771184365827,0.02734737,68342.0,68331.0,0.00012908]
[1771184366223,0.31676099,68342.0,68331.0,0.00012908]
[1771184366428,0.31676099,68341.0,68331.0,0.00012908]
[1771184366653,0.02734737,68340.0,68331.0,0.00012908]
[1771184366901,0.28941362,68339.0,68323.0,0.0002]
[1771184367084,0.02734737,68336.0,68323.0,0.0002]
[1771184367288,0.02734737,68335.0,68323.0,0.0002]
[1771184367488,0.02734737,68334.0,68323.0,0.0002]
[1771184369714,0.000129,68339.0,68323.0,0.0002]
[1771184369921,0.02734737,68338.0,68323.0,0.31728777]
[1771184372167,0.02734737,68338.0,68323.0,0.31712657]
[1771184374017,0.02734737,68338.0,68323.0,3.88e-05]
[1771184374589,0.02734737,68338.0,68324.0,0.31708777]
[1771184379120,0.02734737,68338.0,68323.0,3.88e-05]
[1771184379336,0.02734737,68338.0,68323.0,0.31712657]
[1771184379875,0.02734737,68338.0,68324.0,0.0002]
[1771184381210,0.02734737,68338.0,68325.0,0.31708777]
[1771184383290,0.000129,68339.0,68328.0,0.578984]
[1771184383506,0.000129,68339.0,68329.0,0.30738436]
[1771184383869,0.000129,68339.0,68330.0,0.64186436]
[1771184384354,0.000129,68339.0,68330.0,0.33448]
[1771184384696,0.02792735,68338.0,68330.0,0.33448]
[1771184385354,0.02792735,68338.0,68324.0,0.0002]
[1771184385526,0.30808584,68335.0,68324.0,0.0002]
[1771184385731,0.30808584,68335.0,68323.0,3.88e-05]
[1771184385732,0.02792735,68332.0,68323.0,3.88e-05]
[1771184385910,0.02792735,68330.0,68323.0,3.88e-05]
[1771184387696,0.000129,68339.0,68323.0,3.88e-05]
[1771184387832,0.02792735,68338.0,68324.0,0.29697264]
[1771184388072,0.02792735,68338.0,68324.0,0.29681143]
[1771184389540,0.000529,68339.0,68324.0,0.29681143]
[1771184389952,0.000529,68339.0,68329.0,0.87595664]
[1771184390085,0.000529,68339.0,68330.0,0.29697264]
[1771184390284,0.0004,68346.0,68332.0,0.29697264]
[1771184390468,0.0004,68346.0,68333.0,0.02667264]
[1771184391321,0.0004,68346.0,68332.0,0.000129]
[1771184391322,0.0002404,68377.0,68349.0,0.02667264]
[1771184391528,0.0002404,68377.0,68336.0,1.51761715]
[1771184391529,0.0002404,68377.0,68353.0,0.02667264]
[1771184391735,0.578984,68370.0,68350.0,0.42916]
[1771184391939,0.30808584,68362.0,68340.0,0.33548]
[1771184392149,0.30808584,68360.0,68339.0,0.02667264]
[1771184392355,0.30808584,68359.0,68335.0,0.29697264]
[1771184392825,0.30808584,68359.0,68335.0,0.32364528]
[1771184393291,0.30808584,68359.0,68335.0,0.02667264]
[1771184393540,0.30808584,68359.0,68336.0,0.29697264]
[1771184393761,0.30808584,68359.0,68338.0,0.29697264]
[1771184393985,0.07313475,68367.0,68341.0,0.02667264]
[1771184394212,0.07313475,68367.0,68340.0,0.578984]
[1771184394213,0.3716,68366.0,68344.0,0.29697264]
[1771184394453,0.30808584,68365.0,68345.0,0.02667264]
[1771184394893,0.30808584,68363.0,68345.0,0.02667264]
[1771184396812,0.30808584,68363.0,68335.0,0.02601764]
[1771184397023,0.30808584,68361.0,68335.0,0.02601764]
[1771184397658,0.38122714,68361.0,68335.0,0.02601764]
[1771184397831,0.51448153,68360.0,68340.0,0.51448153]
[1771184398057,0.30808584,68359.0,68340.0,0.51448153]
[1771184399127,0.37172,68358.0,68340.0,0.51448153]
[1771184399332,0.07314856,68356.0,68335.0,0.02601764]
[1771184399552,0.37172,68358.0,68331.0,0.0002404]
[1771184399553,0.30808584,68349.0,68331.0,0.0002404]
[1771184401890,0.2431,68370.0,68316.0,0.0002]
[1771184401891,0.51448153,68340.0,68317.0,0.02645804]
[1771184402110,0.30808584,68338.0,68320.0,0.51448153]
[1771184403109,0.30808584,68338.0,68323.0,0.0001678]
[1771184403591,0.30808584,68338.0,68323.0,0.02618544]
[1771184403772,0.30808584,68338.0,68323.0,0.0001678]
[1771184403937,0.30808584,68338.0,68324.0,0.0002]
[1771184404327,0.30808584,68338.0,68323.0,4.544e-05]
[1771184404983,0.30808584,68336.0,68323.0,4.544e-05]
[1771184405407,0.38125386,68336.0,68323.0,4.544e-05]
[1771184405834,0.51448153,68340.0,68321.0,3.868e-05]
[1771184405835,0.30808584,68360.0,68326.0,0.51448153]
[1771184406034,0.30808584,68360.0,68331.0,0.29697264]
[1771184406035,0.07314848,68355.0,68331.0,0.29697264]
[1771184406205,0.30808584,68354.0,68332.0,0.02601764]
[1771184406643,0.30808584,68349.0,68330.0,0.51448153]
[1771184406847,0.30808584,68347.0,68327.0,0.02601764]
[1771184407256,0.30808584,68347.0,68322.0,0.02601764]
[1771184407445,0.07315925,68345.0,68322.0,0.02601764]
[1771184407601,0.30808584,68339.0,68322.0,0.02601764]
[1771184407945,0.51448153,68340.0,68321.0,3.868e-05]
[1771184407946,0.30808584,68337.0,68321.0,3.868e-05]
[1771184408462,0.30808584,68337.0,68321.0,0.04056561]
[1771184408836,0.30808584,68337.0,68318.0,0.29697264]
[1771184408837,0.30808584,68336.0,68314.0,0.04072693]
[1771184409048,0.07317111,68333.0,68314.0,0.04072693]
[1771184409259,0.51448153,68330.0,68314.0,0.04072693]
[1771184409687,0.58744584,68329.0,68314.0,0.04072693]
[1771184410320,0.27936,68329.0,68322.0,0.0002]
[1771184410538,0.00011958,68337.0,68324.0,0.29697264]
[1771184410740,0.30808584,68354.0,68330.0,0.57927657]
[1771184410741,0.27952,68347.0,68330.0,0.57927657]
[1771184410991,0.27952,68347.0,68332.0,0.02601764]
[1771184411412,0.30808584,68346.0,68330.0,0.00011958]
[1771184411760,0.27952,68347.0,68330.0,0.02613722]
[1771184411962,0.27952,68346.0,68330.0,0.02613722]
[1771184412417,0.30808584,68349.0,68331.0,0.04052693]
[1771184412636,0.27952,68346.0,68331.0,0.04052693]
[1771184413546,0.30419957,68344.0,68330.0,0.00011958]
[1771184414547,0.27948,68345.0,68330.0,0.00011958]
[1771184414773,0.27948,68345.0,68330.0,0.02613722]
[1771184415130,0.30419957,68349.0,68330.0,0.02613722]
[1771184415335,0.27972,68344.0,68330.0,0.02613722]
[1771184417563,0.27972,68344.0,68330.0,0.00011958]
[1771184418154,0.27972,68344.0,68331.0,0.04052693]
[1771184424338,0.07317719,68328.0,68322.0,0.0002]
[1771184424558,0.07317719,68328.0,68311.0,0.0002]
[1771184424559,0.30419957,68328.0,68311.0,0.0002]
[1771184424772,0.0004404,68317.0,68302.0,0.29148337]
[1771184424974,0.0004404,68317.0,68291.0,0.04350438]
[1771184424975,0.28,68316.0,68304.0,0.00067125]
[1771184426412,0.28,68316.0,68304.0,0.00043085]
[1771184427359,0.57927657,68314.0,68296.0,0.0002793]
[1771184427578,0.30419957,68309.0,68296.0,0.0002793]
[1771184428357,0.30419957,68306.0,68291.0,0.04326398]
[1771184428564,0.28024,68305.0,68291.0,0.04326398]
[1771184428769,0.30419957,68306.0,68291.0,0.04326398]
[1771184428938,0.28028,68304.0,68291.0,0.04326398]
[1771184429304,0.09376,68310.0,68291.0,0.04326398]
[1771184429611,0.30419957,68309.0,68291.0,0.04326398]
[1771184430257,0.30419957,68309.0,68304.0,0.0002]
[1771184431315,0.30419957,68307.0,68304.0,0.0002]
[1771184431822,0.07319921,68307.0,68304.0,0.0002]
[1771184431997,0.30419957,68306.0,68304.0,0.0002]
[1771184432204,0.07319921,68307.0,68304.0,0.0002]
[1771184432205,0.37740065,68305.0,68304.0,0.0002]
[1771184432406,0.30419957,68305.0,68304.0,0.0002]
[1771184432614,0.37739758,68308.0,68304.0,0.0002]
[1771184432815,0.30419957,68306.0,68304.0,0.0002]
[1771184433421,0.16695638,68310.0,68304.0,0.0002]
[1771184433422,0.09376,68310.0,68304.0,0.0002]
[1771184434075,0.16695656,68310.0,68304.0,0.0002]
[1771184434275,0.09376,68310.0,68304.0,0.0002]
[1771184434471,0.30419957,68307.0,68304.0,0.0002]
[1771184436076,0.37739666,68309.0,68304.0,0.0002]
[1771184436316,0.00043024,68314.0,68304.0,0.0002]
[1771184436524,0.07341939,68329.0,68307.0,0.04052693]
[1771184436703,0.07360883,68326.0,68310.0,0.29148337]
[1771184436904,0.07360883,68326.0,68308.0,0.04052693]
[1771184436905,0.00043024,68326.0,68308.0,0.04052693]
[1771184437174,0.30419957,68328.0,68308.0,0.04052693]
[1771184437378,0.2818,68325.0,68308.0,0.04052693]
[1771184437580,0.2818,68325.0,68307.0,0.00043024]
[1771184437581,0.2818,68325.0,68311.0,0.29148337]
[1771184437793,0.2818,68325.0,68312.0,0.04052693]
[1771184438204,0.2818,68325.0,68313.0,0.04052693]
[1771184438404,0.0002431,68329.0,68317.0,0.02601764]
[1771184438405,0.0012431,68329.0,68317.0,0.02601764]
[1771184438525,0.0012431,68329.0,68319.0,0.02601764]
[1771184438743,0.0002431,68329.0,68319.0,0.02601764]
[1771184439581,0.00067334,68329.0,68309.0,0.29148337]
[1771184439794,0.00067334,68329.0,68310.0,0.02601764]
[1771184440001,0.28232,68328.0,68312.0,0.29148337]
[1771184440255,0.28232,68328.0,68313.0,0.02601764]
[1771184441156,0.28232,68328.0,68316.0,0.29148337]
[1771184441373,0.28232,68328.0,68317.0,0.04052693]
[1771184441573,0.00043024,68328.0,68317.0,0.04052693]
[1771184444266,0.00043024,68328.0,68318.0,0.02601764]
[1771184447211,0.07316585,68338.0,68318.0,0.02601764]
[1771184447212,0.0004,68344.0,68319.0,0.02601764]
[1771184447394,0.21799161,68368.0,68331.0,0.28735034]
[1771184447395,0.29254447,68366.0,68331.0,0.28735034]
[1771184447627,0.0004,68369.0,68330.0,0.57967428]
[1771184447628,0.00043024,68350.0,68335.0,0.28735034]
[1771184447829,0.00043024,68350.0,68338.0,0.02601764]
[1771184448244,0.00043024,68350.0,68341.0,0.28735034]
[1771184448447,0.00043024,68350.0,68322.0,0.04052693]
[1771184448678,0.31293049,68350.0,68326.0,0.04052693]
[1771184448854,0.00055929,68350.0,68329.0,0.28735034]
[1771184449158,0.00012905,68350.0,68333.0,0.28735034]
[1771184449452,0.00012905,68350.0,68336.0,0.04052693]
[1771184450222,0.00012905,68350.0,68338.0,0.04052693]
[1771184450422,0.00043024,68349.0,68338.0,0.04052693]
[1771184450652,0.00043024,68349.0,68340.0,0.28735034]
[1771184450854,0.00043024,68349.0,68341.0,0.02601764]
[1771184452126,0.00043024,68349.0,68343.0,0.28735034]
[1771184452312,0.0004,68354.0,68344.0,0.04052693]
[1771184452506,0.0004,68354.0,68330.0,0.57967428]
[1771184452767,0.0004,68354.0,68334.0,0.28735034]
[1771184452941,0.0004,68354.0,68336.0,0.28735034]
[1771184453147,0.0004,68354.0,68330.0,0.57980333]
[1771184453148,0.0004,68354.0,68338.0,0.28735034]
[1771184453350,0.0004,68354.0,68341.0,0.04052693]
[1771184453652,0.0004,68354.0,68344.0,0.28735034]
[1771184453819,0.0004,68354.0,68345.0,0.28735034]
[1771184453971,0.0004,68354.0,68346.0,0.04052693]
[1771184456376,0.0004,68354.0,68347.0,0.32787727]
[1771184456978,0.0004,68354.0,68348.0,0.04052693]
[1771184457436,0.0004,68357.0,68330.0,0.57980333]
[1771184457437,0.0004,68357.0,68343.0,0.28735034]
[1771184457638,0.0004,68357.0,68345.0,0.28735034]
[1771184457839,0.0004,68357.0,68348.0,0.04052693]
[1771184458166,0.0004,68357.0,68342.0,0.04052693]
[1771184458361,0.0004,68357.0,68344.0,0.02601764]
[1771184459442,0.0004,68354.0,68345.0,0.28735034]
[1771184459667,0.0004,68354.0,68347.0,0.28735034]
[1771184459866,0.0004,68354.0,68348.0,0.02601764]
[1771184460758,0.0004,68354.0,68330.0,0.57980333]
[1771184460759,0.0004,68354.0,68331.0,0.28735034]
[1771184460949,0.0004,68354.0,68334.0,0.02751811]
[1771184461241,0.0004,68354.0,68330.0,0.57980333]
[1771184461242,0.0004,68354.0,68338.0,0.02751811]
[1771184461453,0.0004,68354.0,68339.0,0.28735034]
[1771184461643,0.0004,68354.0,68340.0,0.02751811]
[1771184461843,0.0004,68354.0,68342.0,0.02751811]
[1771184462933,0.0004,68354.0,68344.0,0.02601764]
[1771184463102,0.0004,68354.0,68344.0,0.28735034]
[1771184463295,0.0004,68354.0,68345.0,0.02601764]
[1771184463497,0.0004,68357.0,68347.0,0.02601764]
[1771184463816,0.0004,68361.0,68349.0,0.02601764]
[1771184464122,0.0004,68368.0,68351.0,0.02601764]
[1771184464241,0.0004,68368.0,68348.0,0.28735034]
[1771184464446,0.0004,68368.0,68352.0,0.28735034]
[1771184464644,0.0004,68368.0,68347.0,0.57967428]
[1771184464645,0.0004,68368.0,68355.0,0.02751811]
[1771184464931,0.312705,68389.0,68360.0,0.28735034]
[1771184465105,0.07311417,68387.0,68364.0,0.28735034]
[1771184465405,0.00050703,68375.0,68367.0,0.31486845]
[1771184465579,0.00050703,68375.0,68368.0,0.02751811]
[1771184465987,0.00050703,68375.0,68369.0,0.02751811]
[1771184466414,0.00050703,68375.0,68365.0,0.28735034]
[1771184466415,0.00050703,68375.0,68371.0,0.02601764]
[1771184466616,0.00050703,68375.0,68373.0,0.02601764]
[1771184466827,0.0003338,68389.0,68359.0,0.28735034]
[1771184467023,0.0008301,68383.0,68363.0,0.28735034]
[1771184467180,0.0008301,68383.0,68358.0,0.57967428]
[1771184467181,0.0008301,68383.0,68366.0,0.02601764]
[1771184467580,0.0008301,68383.0,68370.0,0.02601764]
[1771184467790,0.0008301,68383.0,68374.0,0.02601764]
[1771184469625,0.0008301,68383.0,68376.0,0.02751811]
[1771184470130,0.0003338,68389.0,68377.0,0.02751811]
[1771184470259,0.0003338,68389.0,68379.0,0.28735034]
[1771184470463,0.0003338,68389.0,68370.0,0.57967428]
[1771184470464,0.0003338,68389.0,68381.0,0.02601764]
[1771184471068,0.0003338,68389.0,68382.0,0.28735034]
[1771184471306,0.07309333,68406.0,68384.0,0.28735034]
[1771184471518,0.07309333,68406.0,68379.0,0.57967428]
[1771184471519,0.27996,68403.0,68387.0,0.28735034]
[1771184471894,0.27992,68403.0,68389.0,0.02601764]
[1771184472212,0.00012895,68406.0,68389.0,0.02601764]
[1771184472437,0.27996,68403.0,68389.0,0.02601764]
[1771184472654,0.3123712,68404.0,68389.0,0.02601764]
[1771184472857,0.27992,68403.0,68389.0,0.02601764]
[1771184473230,0.27992,68403.0,68373.0,0.36391107]
[1771184473231,0.3123712,68402.0,68375.0,0.02751811]
[1771184473451,0.3123712,68402.0,68376.0,0.2892046]
[1771184473648,0.3123712,68402.0,68379.0,0.02751811]
[1771184473856,0.30665958,68399.0,68371.0,0.2892046]
[1771184474062,0.30665958,68399.0,68370.0,0.09372]
[1771184474063,0.30665958,68399.0,68374.0,0.02751811]
[1771184474283,0.30665958,68399.0,68376.0,0.02751811]
[1771184474503,0.30665958,68399.0,68377.0,0.02601764]
[1771184474707,0.30665958,68399.0,68377.0,0.2892046]
[1771184474929,0.30665958,68401.0,68378.0,0.02601764]
[1771184475149,0.28032,68403.0,68378.0,0.02601764]
[1771184475150,0.30665958,68395.0,68378.0,0.02601764]
[1771184475995,0.27976,68398.0,68380.0,0.02601764]
[1771184476405,0.58641958,68398.0,68380.0,0.02601764]
[1771184476587,0.27976,68398.0,68380.0,0.02601764]
[1771184476809,0.30665958,68397.0,68380.0,0.02601764]
[1771184477242,0.27976,68398.0,68380.0,0.02601764]
[1771184477457,0.27972,68397.0,68380.0,0.02601764]
[1771184477668,0.27972,68397.0,68381.0,0.2892046]
[1771184477895,0.27972,68397.0,68382.0,0.02751811]
[1771184479217,0.07309978,68400.0,68382.0,0.02751811]
[1771184479546,0.2798,68397.0,68382.0,0.02751811]
[1771184481026,0.2798,68397.0,68384.0,0.02751811]
[1771184481232,0.0004,68403.0,68384.0,0.02751811]
[1771184481440,0.27992,68397.0,68384.0,0.02751811]
[1771184481655,0.28032,68397.0,68384.0,0.02751811]
[1771184483311,0.0004,68397.0,68384.0,0.02751811]
[1771184483518,0.28008,68396.0,68384.0,0.02751811]
[1771184484215,0.35318401,68396.0,68378.0,0.2892046]
[1771184484440,0.28008,68396.0,68379.0,0.02751811]
[1771184486418,0.30665958,68395.0,68370.0,0.09372]
[1771184486623,0.30665958,68395.0,68368.0,0.2894046]
[1771184486624,0.30665958,68389.0,68369.0,0.02601764]
[1771184486836,0.30665958,68387.0,68369.0,0.02601764]
[1771184487047,0.28008,68396.0,68370.0,0.2892046]
[1771184487256,0.3797694,68391.0,68371.0,0.02601764]
[1771184487473,0.07311411,68387.0,68371.0,0.02601764]
[1771184487680,0.28052,68386.0,68371.0,0.02601764]
[1771184488864,0.35363443,68386.0,68371.0,0.02601764]
[1771184489094,0.35363443,68386.0,68379.0,0.0002]
[1771184489295,0.28052,68386.0,68379.0,0.0002]
[1771184491460,0.28092,68385.0,68379.0,0.0002]
[1771184492236,0.07310912,68391.0,68379.0,0.0002]
[1771184492560,0.281,68385.0,68379.0,0.0002]
[1771184493108,0.281,68385.0,68380.0,0.02751811]
[1771184493310,0.281,68385.0,68381.0,0.02751811]
[1771184493966,0.28112,68386.0,68381.0,0.02751811]
[1771184494370,0.28112,68386.0,68379.0,0.0002]
[1771184496018,0.11568853,68399.0,68380.0,0.2892046]
[1771184496237,0.28136,68394.0,68382.0,0.02601764]
[1771184497555,0.07311378,68387.0,68372.0,0.0002]
[1771184497785,0.0209814,68387.0,68372.0,0.0002]
[1771184498784,0.0209814,68387.0,68372.0,0.02515364]
[1771184500364,0.07310957,68391.0,68372.0,0.02515364]
[1771184502136,0.07310957,68391.0,68373.0,0.02751811]
[1771184502335,0.07310957,68391.0,68374.0,0.02495364]
[1771184502534,0.40375054,68392.0,68374.0,0.02495364]
[1771184502690,0.02398234,68391.0,68374.0,0.02495364]
[1771184502902,0.09709167,68391.0,68374.0,0.02495364]
[1771184503274,0.02398234,68390.0,68374.0,0.02495364]
[1771184505100,0.37976945,68392.0,68374.0,0.02495364]
[1771184505248,0.37976945,68392.0,68375.0,0.02751811]
[1771184505779,0.07310913,68391.0,68375.0,0.02751811]
[1771184506180,0.09368,68392.0,68375.0,0.02751811]
[1771184506503,0.11749292,68392.0,68375.0,0.02751811]
[1771184506705,0.09368,68392.0,68375.0,0.02751811]
[1771184506905,0.02381292,68391.0,68375.0,0.02751811]
[1771184507109,0.02381292,68389.0,68375.0,0.02751811]
[1771184508423,0.09368,68392.0,68375.0,0.02751811]
[1771184508562,0.09368,68392.0,68376.0,0.02751811]
[1771184510051,0.09368,68392.0,68376.0,0.01656406]
[1771184510480,0.02400912,68392.0,68376.0,0.01656406]
[1771184510681,0.28256,68391.0,68376.0,0.29450801]
[1771184510908,0.28256,68391.0,68379.0,0.02412861]
[1771184511047,0.0001962,68392.0,68379.0,0.02412861]
[1771184511245,0.2826,68390.0,68379.0,0.02412861]
[1771184511664,0.2826,68390.0,68374.0,0.02412861]
[1771184512022,0.2826,68390.0,68376.0,0.02412861]
[1771184512218,0.2826,68390.0,68376.0,0.31863662]
[1771184512378,0.0005962,68392.0,68379.0,0.02751811]
[1771184512579,0.0005962,68392.0,68381.0,0.02751811]
[1771184513987,0.0005962,68392.0,68382.0,0.29450801]
[1771184514164,0.0005962,68392.0,68383.0,0.02751811]
[1771184514364,0.2826,68391.0,68383.0,0.02751811]
[1771184514860,0.2826,68391.0,68377.0,0.29450801]
[1771184514861,0.30641292,68391.0,68377.0,0.29450801]
[1771184515065,0.30641292,68391.0,68372.0,0.0002]
[1771184515066,0.0731146,68386.0,68372.0,0.0002]
[1771184515335,0.29307191,68387.0,68372.0,0.0002]
[1771184515470,0.07311506,68386.0,68372.0,0.0002]
[1771184515664,0.02381292,68385.0,68372.0,0.0002]
[1771184515905,0.57825051,68390.0,68372.0,0.0002]
[1771184515906,0.02381292,68383.0,68372.0,0.0002]
[1771184516080,0.26576123,68398.0,68361.0,0.29470801]
[1771184516081,0.29307191,68380.0,68361.0,0.0002]
[1771184516280,0.29307191,68377.0,68361.0,0.0002]
[1771184517747,0.28272,68379.0,68361.0,0.32222612]
[1771184518001,0.37688,68378.0,68366.0,0.02751811]
[1771184518502,0.28324,68377.0,68369.0,0.29450801]
[1771184518727,0.27181375,68377.0,68371.0,0.31863662]
[1771184518936,0.09368,68385.0,68361.0,0.0002]
[1771184518937,0.28324,68383.0,68374.0,0.02412861]
[1771184519617,0.02381292,68382.0,68366.0,0.02412861]
[1771184520039,0.02381292,68378.0,68361.0,0.02432861]
[1771184520218,0.02381292,68377.0,68361.0,0.02432861]
[1771184521013,0.29307191,68372.0,68361.0,0.0002]
[1771184521220,0.28344,68371.0,68361.0,0.0002]
[1771184521815,0.07313699,68365.0,68351.0,0.0002]
[1771184522033,0.29307191,68364.0,68351.0,0.0002]
[1771184522292,0.02381292,68362.0,68351.0,0.00030703]
[1771184524550,0.28364,68363.0,68351.0,0.00030703]
[1771184524751,0.11676784,68386.0,68351.0,0.29481504]
[1771184525097,0.07312296,68378.0,68356.0,0.02751811]
[1771184525318,0.29307191,68378.0,68358.0,0.02751811]
[1771184525534,0.28424,68377.0,68358.0,0.02751811]
[1771184525749,0.28424,68377.0,68359.0,0.29450801]
[1771184525972,0.28424,68377.0,68362.0,0.02751811]
[1771184526188,0.07312798,68374.0,68355.0,0.02751811]
[1771184526610,0.28424,68377.0,68351.0,0.29481504]
[1771184526611,0.07313256,68369.0,68351.0,0.29481504]
[1771184526829,0.28424,68368.0,68351.0,0.29481504]
[1771184527037,0.30805292,68368.0,68352.0,0.02412861]
[1771184527240,0.30805292,68368.0,68353.0,0.29450801]
[1771184527451,0.30805292,68368.0,68354.0,0.29450801]
[1771184527662,0.30805292,68368.0,68355.0,0.02412861]
[1771184528101,0.28436,68367.0,68355.0,0.02412861]
[1771184530060,0.28448,68366.0,68355.0,0.02412861]
[1771184531060,0.02381292,68374.0,68355.0,0.02412861]
[1771184531061,0.28448,68367.0,68355.0,0.02412861]
[1771184531209,0.28448,68367.0,68355.0,0.29450801]
[1771184531407,0.28448,68367.0,68351.0,0.00030703]
[1771184531408,0.28448,68367.0,68357.0,0.29450801]
[1771184531606,0.02381292,68378.0,68358.0,0.29450801]
[1771184531811,0.28448,68374.0,68359.0,0.02412861]
[1771184532224,0.30829292,68374.0,68359.0,0.02412861]
[1771184532425,0.28448,68374.0,68360.0,0.02751811]
[1771184533503,0.07313193,68370.0,68352.0,0.02751811]
[1771184533706,0.65138244,68370.0,68352.0,0.02751811]
[1771184533832,0.0731338,68368.0,68352.0,0.02751811]
[1771184534038,0.26768188,68369.0,68351.0,0.00030703]
[1771184534301,0.29232323,68365.0,68351.0,0.00030703]
[1771184534439,0.28476,68364.0,68351.0,0.00030703]
[1771184534792,0.02464135,68363.0,68351.0,0.00030703]
[1771184535200,0.26768188,68359.0,68344.0,0.0002]
[1771184535422,0.02464135,68356.0,68344.0,0.0002]
[1771184535719,0.285,68355.0,68344.0,0.0002]
[1771184538571,0.02464135,68354.0,68344.0,0.0002]
[1771184540339,0.285,68355.0,68344.0,0.0002]
[1771184540895,0.0731486,68354.0,68344.0,0.0002]
[1771184541113,0.26768188,68353.0,68344.0,0.0002]
[1771184541521,0.285,68355.0,68344.0,0.0002]
[1771184541682,0.35814774,68355.0,68344.0,0.0002]
[1771184542075,0.34083048,68354.0,68344.0,0.0002]
[1771184542282,0.26768188,68353.0,68344.0,0.0002]
[1771184542504,0.02464135,68351.0,68344.0,0.0002]
[1771184542909,0.07315292,68350.0,68344.0,0.0002]
[1771184543116,0.09779427,68350.0,68344.0,0.0002]
[1771184543309,0.09779427,68350.0,68337.0,0.0002]
[1771184543310,0.02464135,68350.0,68337.0,0.0002]
[1771184543483,0.02464135,68349.0,68337.0,0.0002]
[1771184545538,0.02464135,68349.0,68337.0,3.884e-05]
[1771184546150,0.57759154,68355.0,68333.0,0.022594]
[1771184546151,0.26768188,68348.0,68333.0,0.022594]
[1771184546350,0.34083977,68346.0,68330.0,0.0002]
[1771184546647,0.2872,68347.0,68330.0,0.0002]
[1771184546648,0.57825051,68340.0,68330.0,0.0002]
[1771184546850,0.57825051,68340.0,68330.0,3.881e-05]
[1771184546851,0.02464135,68338.0,68330.0,3.881e-05]
[1771184547271,0.02464135,68338.0,68329.0,0.00013134]
[1771184547635,0.02464135,68338.0,68322.0,0.022594]
[1771184547838,0.02464135,68336.0,68323.0,0.0002]
[1771184548077,0.02474818,68336.0,68323.0,0.0002]
[1771184548292,0.00010683,68336.0,68323.0,0.0002]
[1771184548498,0.00010683,68336.0,68323.0,0.02771811]
[1771184552358,0.00010683,68336.0,68323.0,0.0002]
[1771184552567,0.07084199,68335.0,68323.0,0.0002]
[1771184554098,0.07084199,68335.0,68323.0,3.887e-05]
[1771184556730,0.07084199,68335.0,68318.0,0.28733482]
[1771184557317,0.07084199,68334.0,68316.0,0.0002]
[1771184558339,0.07084199,68332.0,68316.0,0.0002]
[1771184558516,0.07084199,68332.0,68317.0,0.28733482]
[1771184566736,0.28884,68333.0,68321.0,0.26583387]
[1771184567093,0.00010683,68336.0,68321.0,0.26583387]